Cogmind - Beta 15 @@@ ROGUE MODE // 2025.07.30 @ 14:12:21 Player: P9H Result: Destroyed by Triborg with Siege Cannon Performance ------------- Evolutions (0) 0 Regions Visited (5) 1000 Robots Destroyed (13) 65 Value Destroyed (327) 327 Prototype IDs (13) 260 Alien Tech Used (0) 0 Bonus (300) 300 TOTAL SCORE: 1952 Bonus ------- Registered with UFD 300 Cogmind --------- Core Integrity 0/250 Matter 300/300 Energy 100/100 System Corruption 1% Temperature Cool (0) Movement Treading (145) Location -8/Scraptown Parts ------- > --- POWER (1) -------- (None) > --- PROPULSION (2) --- Advanced Treads > --- UTILITY (2) ------ (None) > --- WEAPON (2) ------- Companion Sword > --- INVENTORY (5) ---- Improved Targeting Computer Target Analyzer Improved System Restoration Module Pulse Rifle Heavy Flail Peak State ------------ > --- POWER ------------ Light Fission Core > --- PROPULSION ------- Advanced Treads Advanced Treads > --- UTILITY ---------- Humpback > --- WEAPON ----------- Rocket Launcher Companion Sword > --- INVENTORY -------- Light Ion Engine Advanced Treads Advanced Treads Large Storage Unit High-capacity Battery Spectral Analyzer Improved Targeting Computer Target Analyzer Target Analyzer Energy Filter ECM Suite Reaction Control System Improved System Restoration Module Tractor Beam Pulse Rifle Ion Cannon Assault Cannon Bore Cannon Heavy Flail [Rating: 26] Favorites ----------- Power Deuterium Engine Engine Deuterium Engine Power Core Light Fission Core Propulsion Advanced Treads Treads Advanced Treads Wheel Compact Wheel Flight Unit Flight Unit Utility Small Storage Unit Device ECM Suite Storage Small Storage Unit Protection Light Armor Plating Weapon Rocket Launcher Energy Gun Pulse Rifle Energy Cannon Ion Cannon Ballistic Gun Assault Rifle Ballistic Cannon Assault Cannon Launcher Rocket Launcher Slashing Weapon Companion Sword Build | -11 -10 -10 -10 -8 -8 ------- Run | Yrd Mat Min Sub Rec Scr Slots Evolved . | . . . . . . Power . | . . . . . . Propulsion . | . . . . . . Utility . | . . . . . . Weapon . | . . . . . . Parts Attached 29 | 4 4 5 2 6 8 Power 4 | . 1 . 1 1 1 Engine 3 | . 1 . 1 1 . Core 1 | . . . . . 1 Reactor . | . . . . . . Propulsion 10 | 2 2 2 1 2 1 Treads 5 | 1 . . 1 2 1 Leg . | . . . . . . Wheel 1 | 1 . . . . . Hover . | . . . . . . Flight 4 | . 2 2 . . . Utility 5 | 1 1 . . 1 2 Device 2 | . 1 . . 1 . Storage 2 | 1 . . . . 1 Processor . | . . . . . . Hackware . | . . . . . . Protection 1 | . . . . . 1 Artifact . | . . . . . . Weapon 10 | 1 . 3 . 2 4 Energy Gun 2 | 1 . . . . 1 Energy Cannon 1 | . . . . . 1 Ballistic Gun 3 | . . 3 . . . Ballistic Cannon 2 | . . . . 2 . Launcher 1 | . . . . . 1 Special Weapon . | . . . . . . Impact Weapon . | . . . . . . Slashing Weapon 1 | . . . . . 1 Piercing Weapon . | . . . . . . Special Melee Weapon . | . . . . . . Unidentified Prototypes 1 | . . . . . 1 Parts Lost 15 | . . 2 7 . 6 Power 4 | . . . 2 . 2 Propulsion 5 | . . 1 2 . 2 Utility 2 | . . . 1 . 1 Weapon 4 | . . 1 2 . 1 Highest Loss Streak 6 | . . 2 5 . 6 To Critical Strikes . | . . . . . . Average Backups 10 | 4 7 7 7 7 11 Power . | 1 1 1 . . . Propulsion 2 | 1 2 4 3 2 1 Utility 5 | . 1 2 2 5 6 Weapon 1 | 1 2 . 1 . 2 Tool/Special . | . . . . . . Unused Backups 19 | . 1 . . 3 15 Power 1 | . . . . . 1 Propulsion 4 | . 1 . . 2 1 Utility 12 | . . . . . 12 Weapon 2 | . . . . 1 1 Tool/Special . | . . . . . . Average Slot Usage (%) 87 | . 67 98 91 92 85 Engine 13 | . 6 14 10 11 13 Treads 23 | . 6 . 1 28 28 Flight 3 | . 12 27 23 . . Device 8 | . 7 14 14 11 6 Storage 14 | . 14 14 14 14 14 Energy Gun 5 | . 12 1 . . 6 Ballistic Gun 3 | . . 25 26 . . Ballistic Cannon 4 | . . . . 25 . Launcher 6 | . . . . . 10 Slashing Weapon 3 | . . . . . 4 Peak Build Rating 26 | 4 6 8 8 20 26 Average Rating 16 | 2 4 7 7 17 19 On Entrance 6 | . 4 6 8 3 20 Naked Turns . | . . . . . . Heaviest Build 217 | 7 11 13 12 30 217 Greatest Support 44 | 20 20 8 40 44 44 Greatest Overweight (x) 4 | . 2 2 2 . 4 Average Overweight (x) . | . . 1 1 . 1 Largest Inventory Capacity 35 | 8 8 8 8 8 35 Average Capacity 17 | 6 8 8 8 8 22 Most Carried 20 | 6 8 8 8 8 20 Average Carried 10 | 5 7 7 7 7 11 Final Capacity 8 | 8 8 8 8 8 5 Final Carried 8 | 6 8 8 5 8 5 Class Distribution -------------------- 63% | Mutant 36% | Hauler-Mutant Dominant Class ---------------- Mutant | -10/Materials Mutant | -10/Mines Mutant | -10/Subcaves Mutant | -8/Recycling Hauler-Mutant | -8/Scraptown Resources | -11 -10 -10 -10 -8 -8 ----------- Run | Yrd Mat Min Sub Rec Scr Matter Collected 770 | 230 . 26 34 331 149 Remotely . | . . . . . . Salvage Created 324 | . . 132 34 152 6 Parts 22 | . . 10 5 6 1 Haulers Intercepted . | . . . . . . Recyclers Shooed . | . . . . . . Parts Field Recycled . | . . . . . . Retrieved Matter . | . . . . . . Parts Self-Destructed 5 | . . . 5 . . Prevented . | . . . . . . Kills | -11 -10 -10 -10 -8 -8 ------- Run | Yrd Mat Min Sub Rec Scr Combat Hostiles Destroyed 11 | . . 5 3 3 . Guns 8 | . . 5 3 . . Cannons 3 | . . . . 3 . Classes Destroyed 6 | . . 2 . 3 1 Worker 1 | . . . . 1 . Swarmer 6 | . . 3 3 . . Grunt 2 | . . 2 . . . Sentry 1 | . . . . 1 . Programmer 2 | . . . . 2 . Zionite 1 | . . . . . 1 Best Kill Streak 3 | . . 3 2 3 1 Combat Bots Only 3 | . . 3 2 1 . Max Kills in Single Turn 2 | . . 2 1 1 1 Gunslinging 1 | . . 1 . . . Exploded . | . . . . . . Melee . | . . . . . . Uniques/NPCs Destroyed . | . . . . . . Combat | -11 -10 -10 -10 -8 -8 -------- Run | Yrd Mat Min Sub Rec Scr Hostile Shots Fired 173 | . . 40 95 18 20 Missed 55 | . . 10 34 6 5 Hits 118 | . . 30 61 12 15 Melee 4 | . . . . . 4 Projectile 114 | . . 30 61 12 11 Critical Strikes 3 | . . 1 1 1 . Damage Taken 1726 | . . 282 464 182 798 Core 285 | . . 34 114 45 92 Absorbed by Shields . | . . . . . . Core Remaining (%) 100 | 100 . . . . . Volleys Fired 37 | 1 . 17 9 10 . Largest 2 | 1 . 2 2 2 . Hottest 85 | 40 . 60 40 85 . Shots Fired 73 | 1 . 32 18 21 1 Gun 51 | 1 . 32 18 . . Cannon 21 | . . . . 21 . Launcher 1 | . . . . . 1 Special . | . . . . . . Kinetic 65 | . . 26 18 21 . Thermal . | . . . . . . Explosive 1 | . . . . . 1 Electromagnetic 7 | 1 . 6 . . . Robot Hit Streak 6 | . . 6 2 4 4 Robot Miss Streak 5 | 1 . 3 3 5 . Penetration Max 1 | . . . . 1 . Secondary Targets 1 | . . 1 . . . Max Gunslinging Chain 1 | . . 1 . . . Shots Hit Robots 41 | . . 21 8 9 3 Core Hits 21 | . . 9 3 7 2 Critical Kills 3 | . . . . 3 . Critical Parts Destroyed 5 | . . . . 5 . Critical Strikes 9 | . . . . 9 . Destroy 9 | . . . . 9 . Melee Attacks 3 | . . . . . 3 Impact . | . . . . . . Slashing 3 | . . . . . 3 Piercing . | . . . . . . Sneak Attacks . | . . . . . . Combat Hostiles . | . . . . . . Follow-up Attacks . | . . . . . . Damage Inflicted 780 | . . 219 85 428 48 Guns 304 | . . 219 85 . . Cannons 428 | . . . . 428 . Explosions 32 | . . . . . 32 Melee 16 | . . . . . 16 Ramming . | . . . . . . Kinetic 722 | . . 209 85 428 . Thermal . | . . . . . . Explosive 32 | . . . . . 32 Electromagnetic 10 | . . 10 . . . Impact . | . . . . . . Slashing 16 | . . . . . 16 Piercing . | . . . . . . Highest Corruption 1 | . . . . 1 1 Average Corruption 1 | . . . . 1 1 Corruption Purged . | . . . . . . Corruption Blocked . | . . . . . . Effects 30 | . . . . 5 25 Message Errors 7 | . . . . 1 6 Matter Fused 9 | . . . . . 9 Heat Flow Errors 2 | . . . . . 2 Energy Discharges 6 | . . . . 2 4 Data Loss (minor) 1 | . . . . 1 . Data Loss (major) 2 | . . . . . 2 Misfires 2 | . . . . 1 1 Alerts 1 | . . . . . 1 Overload Shots . | . . . . . . Overflow Damage 23 | . . . . 23 . Projectiles 23 | . . . . 23 . Explosions . | . . . . . . Melee . | . . . . . . Knockbacks 1 | . . . . 1 . Impact . | . . . . . . Kinetic 1 | . . . . 1 . Secondary . | . . . . . . Self-Inflicted Damage . | . . . . . . Shots . | . . . . . . Rammed . | . . . . . . Targets Rammed . | . . . . . . Kicked . | . . . . . . Crushed . | . . . . . . Highest Temperature 251 | . . 30 2 81 251 Average Temperature 50 | . . 11 2 36 124 Received Heat Transfer 372 | . . 54 261 9 48 Siege Activations . | . . . . . . Martial Activations . | . . . . . . Shielding Activations . | . . . . . . Robots Disrupted . | . . . . . . Combat Hostiles . | . . . . . . Robots Corrupted . | . . . . . . Combat Hostiles . | . . . . . . Parts Fried . | . . . . . . Impact Corruptions . | . . . . . . Robots Melted . | . . . . . . Combat Hostiles . | . . . . . . Parts Melted . | . . . . . . Heat Transferred . | . . . . . . Parts Sabotaged . | . . . . . . Parts Stolen . | . . . . . . Parts Stripped . | . . . . . . Power Chain Reactions . | . . . . . . Alert | -11 -10 -10 -10 -8 -8 ------- Run | Yrd Mat Min Sub Rec Scr Maximum Alert Level . | . . . . . . Low Security (%) 100 | 100 100 100 . 100 . Level 1 . | . . . . . . Level 2 . | . . . . . . Level 3 . | . . . . . . Level 4 . | . . . . . . Level 5 . | . . . . . . High Security . | . . . . . . Max Security . | . . . . . . Peak Influence 55 | . . 55 . 49 . Initial 4 | . . . . 4 . Average 7 | . . 20 . 4 . Influence Increases 335 | . . 135 121 79 . Destroy 0b10 Robot/C 220 | . . 100 60 60 . Destroy 0b10 Robot/NC 15 | . . . . 15 . Destroy Leader 20 | . . 20 . . . Allied During Kill 1 | . . . 1 . . Disable Machine 15 | . . 15 . . . Destroy Structure 4 | . . . . 4 . Lose Combat Pursuer 60 | . . . 60 . . Influence Decreases 335 | . . 120 125 90 . Entered New Map 15 | . . . 8 7 . Time Decay 240 | . . 110 47 83 . Lost Part 80 | . . 10 70 . . Squads Dispatched . | . . . . . . Investigation . | . . . . . . Extermination . | . . . . . . Reinforcement . | . . . . . . Assault . | . . . . . . Garrison . | . . . . . . Intercept . | . . . . . . Searches Triggered . | . . . . . . Construction Impeded . | . . . . . . Haulers Reinforced . | . . . . . . Active Scanning Responses . | . . . . . . Cargo Convoy Interrupts . | . . . . . . Stealth | -11 -10 -10 -10 -8 -8 --------- Run | Yrd Mat Min Sub Rec Scr Distress Signals . | . . . . . . Communications Jammed . | . . . . . . Distress Signals . | . . . . . . Times Spotted 22 | . . 5 8 3 6 Peak Tracking Total 10 | . . 3 6 2 10 Tactical Retreats 3 | . . . 3 . . Traps | -11 -10 -10 -10 -8 -8 ------- Run | Yrd Mat Min Sub Rec Scr Traps Triggered 2 | . 2 . . . . Indirectly . | . . . . . . Trap Hack Attempts . | . . . . . . Triggered . | . . . . . . Disarmed . | . . . . . . Reprogrammed . | . . . . . . Reused . | . . . . . . Traps Extracted . | . . . . . . Installed . | . . . . . . Triggered . | . . . . . . Machines | -11 -10 -10 -10 -8 -8 ---------- Run | Yrd Mat Min Sub Rec Scr Machines Disabled 4 | . . 1 . . 3 Max in Single Turn 3 | . . 1 . . 3 Machines Repaired . | . . . . . . Machines Dismantled . | . . . . . . Machines Sabotaged . | . . . . . . Overloaded Fab Kills . | . . . . . . Hacking | -11 -10 -10 -10 -8 -8 --------- Run | Yrd Mat Min Sub Rec Scr Machines Accessed 3 | . . . . 1 2 Terminals . | . . . . . . Fabricators . | . . . . . . Repair Stations . | . . . . . . Recycling Units . | . . . . . . Scanalyzers . | . . . . . . Garrison Access . | . . . . . . Total Hacks 21 | . . . . 19 2 Successful 21 | . . . . 19 2 Failed . | . . . . . . Catastrophic . | . . . . . . Database Lockouts . | . . . . . . Manual . | . . . . . . Terminals . | . . . . . . Fabricators . | . . . . . . Repair Stations . | . . . . . . Recycling Units . | . . . . . . Scanalyzers . | . . . . . . Garrison Access . | . . . . . . Terminal Hacks 21 | . . . . 19 2 Record 19 | . . . . 19 . Open Door 1 | . . . . . 1 Proto ID Catalog 1 | . . . . . 1 Fabricator Hacks . | . . . . . . Repair Station Hacks . | . . . . . . Recycling Unit Hacks . | . . . . . . Scanalyzer . | . . . . . . Garrison Access Hacks . | . . . . . . Unauthorized Hacks . | . . . . . . Terminals . | . . . . . . Fabricators . | . . . . . . Repair Stations . | . . . . . . Recycling Units . | . . . . . . Scanalyzers . | . . . . . . Garrison Access . | . . . . . . Data Cores Recovered . | . . . . . . Used . | . . . . . . Hacking Detections . | . . . . . . Full Trace Events . | . . . . . . Feedback Events . | . . . . . . Feedback Blocked . | . . . . . . Robot Schematics Acquired . | . . . . . . Robots Built . | . . . . . . Authchips . | . . . . . . Time . | . . . . . . Total Robot Build Rating . | . . . . . . Part Schematics Acquired . | . . . . . . Parts Built . | . . . . . . Authchips . | . . . . . . Time . | . . . . . . Total Part Build Rating . | . . . . . . Parts Repaired . | . . . . . . Time . | . . . . . . Parts Recycled . | . . . . . . Recycled Matter . | . . . . . . Retrieved Matter . | . . . . . . Retrieved Components . | . . . . . . Parts Scanalyzed . | . . . . . . Part Schematics Acquired . | . . . . . . Parts Damaged . | . . . . . . Bothacking | -11 -10 -10 -10 -8 -8 ------------ Run | Yrd Mat Min Sub Rec Scr Used RIF Installer . | . . . . . . Robots Hacked . | . . . . . . Non-combat . | . . . . . . Combat . | . . . . . . Robot Hacks Applied . | . . . . . . Relay Couplers Released . | . . . . . . Fabnet Peak Effective % . | . . . . . . Robots Rewired . | . . . . . . Allies Hacked . | . . . . . . Hacks Repelled . | . . . . . . Allies | -11 -10 -10 -10 -8 -8 -------- Run | Yrd Mat Min Sub Rec Scr Total Allies 2 | . . 2 . . . Largest Group 2 | . . 2 2 . . Highest-Rated Group 41 | . . 41 41 . . Highest-Rated Ally 31 | . . 31 31 . . Total Orders . | . . . . . . Ally Attacks . | . . . . . . Total Damage . | . . . . . . Kills . | . . . . . . Allies Corrupted . | . . . . . . Allies Melted . | . . . . . . Intel | -11 -10 -10 -10 -8 -8 ------- Run | Yrd Mat Min Sub Rec Scr Active Infowar (turns) 2361 | . 70 319 200 510 1262 Terrain 589 | . 70 319 200 . . ECM 1772 | . . . . 510 1262 Robot Analysis Total . | . . . . . . Derelict Logs Recovered . | . . . . . . Drone Launches . | . . . . . . Drone Recoveries . | . . . . . . Exploration | -11 -10 -10 -10 -8 -8 ------------- Run | Yrd Mat Min Sub Rec Scr Turns Passed 4283 | 78 125 319 204 747 2810 Spaces Moved 2117 | 51 83 187 139 468 1189 Core 13 | 12 1 . . . . Treads 1733 | 34 34 . 8 468 1189 Legs . | . . . . . . Wheels 5 | 5 . . . . . Hover . | . . . . . . Flight 366 | . 48 187 131 . . Fastest Speed 37 | 50 37 117 117 145 145 Average Speed 190 | 128 132 117 127 148 232 Slowest Speed 465 | 160 160 200 200 160 465 Overloaded Moves . | . . . . . . Propulsion Burnouts . | . . . . . . Robots Hopped . | . . . . . . Potential Cave-ins . | . . . . . . Cave-ins Triggered . | . . . . . . Exploration Rate (%) 33 | 4 17 31 12 57 81 Regions Visited 5 Branch Regions 4 Pre-discovered Areas . | . . . . . . Known Exits Taken . | . . . . . . Unknown Exits Taken 5 | 1 1 1 1 1 . Scrap Searched 5 | . . . . . 5 Spaces Dug . | . . . . . . Terrain Destroyed 11 | . . . . 5 6 Melee . | . . . . . . Projectile 5 | . . . . 5 . AOE 6 | . . . . . 6 Terrain Rammed . | . . . . . . Walls Destroyed . | . . . . . . Machines Disabled . | . . . . . . Actions | -11 -10 -10 -10 -8 -8 --------- Run | Yrd Mat Min Sub Rec Scr Total 2298 | 61 96 257 150 502 1232 Wait 47 | . . 42 . 5 . Move 2112 | 50 82 186 138 467 1189 Hop . | . . . . . . Pick Up 43 | 6 4 4 . 9 20 Fast Attach 14 | 4 6 . . 1 3 Attach 14 | . 1 3 3 3 4 Detach 2 | . . . . . 2 Swap 6 | . . 2 . 2 2 Drop 20 | . 3 3 . 5 9 Fire 37 | 1 . 17 9 10 . Melee 3 | . . . . . 3 Ram . | . . . . . . Kick . | . . . . . . Crush . | . . . . . . Escape Stasis . | . . . . . . Rewire . | . . . . . . Trap . | . . . . . . Miscellaneous . | . . . . . . Route ------- -11/Scrapyard -10/Materials -10/Mines -10/Subcaves -8/Recycling -8/Scraptown (discovered 1 exit: [*Fac]) History --------- Turn | Location | Event 10 | -11/Scrapyard | Discovered new exit (range 15) 79 | -11/Scrapyard | Entered Materials 196 | -10/Materials | Discovered new exit (range 6) 204 | -10/Materials | Entered Mines 303 | -10/Mines | Build established: Mutant 309 | -10/Mines | A weapon hastily lodged in a ceiling crevice suddenly fell to the ground 502 | -10/Mines | Discovered new exit (range 5) 523 | -10/Mines | Entered Subcaves 523 | -10/Subcaves | Accompanied by 2 allies 524 | -10/Subcaves | Approached by a straggling Scientist 528 | -10/Subcaves | Led the pair of lost Derelicts to an unsafe place 634 | -10/Subcaves | A swath of the cavern ceiling suddenly collapsed 706 | -10/Subcaves | Discovered new exit (range 10) 719 | -10/Subcaves | Core integrity fell below 50% 727 | -10/Subcaves | Entered Recycling 754 | -8/Recycling | Lost 5 parts (1p1n1u2w) 1408 | -8/Recycling | Scanned before Scraplab entrance 1431 | -8/Recycling | Entered Scraplab 1461 | -8/Recycling | Discovered new exit (range 2) 1474 | -8/Recycling | Entered Scraptown 1764 | -8/Scraptown | Discovered new exit (range 5) 1801 | -8/Scraptown | Heard Great Nut preacher, LISTEN AND RECITE! 1822 | -8/Scraptown | Visited Spacefarers 1836 | -8/Scraptown | Visited Comm Corps 2048 | -8/Scraptown | Visited Red Mages 2377 | -8/Scraptown | Visited UFD Registry 2377 | -8/Scraptown | Registered with UFD as "Cargoskull" 2427 | -8/Scraptown | Visited Chapter 10 2490 | -8/Scraptown | Visited Science Guys 2545 | -8/Scraptown | Visited Infowarlord's Domain 2563 | -8/Scraptown | Found Spectral Analyzer 2592 | -8/Scraptown | Visited Scrapoid Research Area 2627 | -8/Scraptown | Visited Scrap Suit Storage 2651 | -8/Scraptown | Visited Derelict Rescue Squad 3028 | -8/Scraptown | Build established: Hauler-Mutant 3202 | -8/Scraptown | Visited Abandonware Association 3281 | -8/Scraptown | Visited Sword Containment 3433 | -8/Scraptown | Visited Botcube Research 4106 | -8/Scraptown | Attacked by Scraptown defenders 4279 | -8/Scraptown | Core integrity fell below 20% 4284 | -8/Scraptown | Destroyed by Triborg with Siege Cannon Last Messages --------------- yourself to blame! 04251_ Siege Slug penetrates Machine. 04251_ Machine disabled. 04253_ Penetrated by Siege Slug. 04253_ Siege Slug penetrates Wall. 04255_ Penetrated by Siege Slug. 04257_ Deuterium Engine destroyed. 04257_ Siege Slug penetrates Earth. 04258_ Acquired 6 matter. 04278_ Siege Slug penetrates Wall. 04278_ Rocket Launcher destroyed. 04279_ I2-JTT(j): "If it isn't public enemy #1: the new Cargoskull!" 04280_ Penetrated by Siege Slug. 04280_ Adv. Treads destroyed. 04280_ Machine disabled. 04282_ Lgt. Fission Core destroyed. 04284_ Penetrated by Siege Slug. 04284_ Adv. Treads destroyed. 04284_ Humpback destroyed. Map ----- +----------------------------------------------------+ | ?#" """"" ] [ "#????????? ???# | | ?#" " " !]! "#???????? """ ??# | | ??""" " ![ "#???????? """ ??# | | ???""""" " " / "#???????? """ ?# | | ????"""""""" " * ] "#???????# """ ?# | | ?????####### " / "#???????# """ # | | ?????####### " "#???????# # | | ????"""""""" """" ""#??" " | | ??"""""""" " #### ###???????#""""" # | | ??"" " " #### ###????????######## | | ???""" " """" ""#???????????????# | | ??""" " "#??????????###??# | | ???"""""" " " "" "#?????????""" ?# | | ???"" " " "" "#????????"""" # | | ???"""" " " "#????????"""" # | | ???""" " " ""#????????"""" | | ????"""" " " """""#???????"""" # | | ???""" " """""""#??????"" # | | ???"" " " """""""???????"""""" ?# | | ???""""" " ######???????????""" ?# | | ???"" " ########??????????"" ??# | | ???""""" " #"""X""#???????????????# | | ??""" "" " #" "#???????????????# | | ?#"" %]!#" "#???????????????# | | ??"""" "!!#" "#?????????####### | | ?#"" ]!@#" "#????????## | | ??"" """""""!x!] "#????????# | | ??## #######j!#j """########### | | ???# # %% %j T ### | | ?### ####### TT #?? | | ?#"" """"""" #"" "##"" """### #?? | | ?#" " " "" #" "##"" "#?# #?? | | ?#" " " "" #"" "##"" "#?# #?? | | ?#" " "" #"" "##"" "#?# #?? | | ?#" "" #"" " "##"%! "#?# #?? | | ?#" #"""" "##"! "#?# #?? | | ?#"" " #""""""##""""""#?# #?# | | ?#""" "" ################?# #?# | | ?#"" " # #####?#####???# #?? | | ?#""" " """"#?#"""#???# #?? | | ?#"""""" "" % "#?#" "#???# #?? | | ?####### ## = """ "#?# #???# #?? | | ???# ## "" "#?# ##### #?? | | ?### ###### " """ "#?# ! ##? | | ?#"" """"""" " """ "#?# ! #? | | ?#" " " """ "#?# ##? | | ?#" """"" " " """ "#?##### ### ##?? | | ?#" """"" " " """ "#?????# #??##??? | | ?#" """""" """ "####### ######?? | | ?#" """"" " " """ "##""""" """""#?? | +----------------------------------------------------+ Best States ------------- Heat Dissipation 25 Energy Generation 18 Energy Capacity 275 Matter Stores 300 Matter Capacity 300 Sight Range 16 Terrain Scan Range 14 Terrain Scan Density 10 ECM Strength 1 Evasion (%) 50 Recoil Reduction 2 Item Schematics ----------------- None Robot Schematics ------------------ None Fabricated ------------ Nothing Repaired ---------- Nothing Alien Tech Used ----------------- None Achievements -------------- None Challenges ------------ None Game ------ Seed MassMultitargetingArchive Manual? 0 Play Time 00:23:15 Cumulative 59.6 hours Start 2025.07.30 @ 13:28:25 End 2025.07.30 @ 14:12:21 Sessions 1 Manual Loads 0 Difficulty Rogue Special Mode None Game No. 116 Rogue 116 Adventurer 0 Explorer 0 Win Type - Total 0 Types 0/0/0/0/0/0/0/0/0/0 Lore% 14 Gallery% 36 Achievement% 28 Wizard Run 0 Options --------- Layout 1 ASCII 0 Keyboard 0 Movement Mouse Keybinds 0 Fullscreen 2 Font 32/SmallcapsGlow Map View 50x35 Zoom Use 0% Tactical HUD 1 Map Filters NONE Filters NONE Steam 1 RUN: 68fbe4df-0df9-4cae-a3ef-487d713d2307